Cogmind - Beta 11.1 @@@ ROGUE MODE // 2022.07.09 @ 15:04:54 // AFD2019/Pay2Buy Player: Pogmind Result: Self-destructed Performance ------------- Evolutions (0) 0 Regions Visited (4) 800 Robots Destroyed (46) 230 Value Destroyed (983) 983 Prototype IDs (29) 580 Alien Tech Used (0) 0 Bonus (300) 300 TOTAL SCORE: 2893 Bonus ------- Aligned with FarCom 300 Cogmind --------- Core Integrity 209/250 Matter 211/300 Energy 250/250 System Corruption 4% Temperature Cool (0) Movement Treading (160) Location -9/Mines Parts ------- > --- POWER (1) -------- Ion Engine > --- PROPULSION (2) --- Improved Treads Improved Treads > --- UTILITY (2) ------ Medium Armor Plating Medium Armor Plating > --- WEAPON (2) ------- (None) > --- INVENTORY (10) --- High-capacity Matter Pod (0) Heavy EM Pulse Gun Heavy Particle Gun Ion Cannon Improved Assault Rifle Enhanced Autogun Battle Cannon Rocket Launcher Rocket Array Flail Peak State ------------ > --- POWER ------------ Ion Engine > --- PROPULSION ------- Improved Treads Improved Treads > --- UTILITY ---------- Light Armor Plating Medium Armor Plating > --- WEAPON ----------- Improved Assault Rifle Enhanced Autogun > --- INVENTORY -------- Heavy EM Pulse Gun Heavy Particle Gun Ion Cannon Battle Cannon Rocket Array Flail [Rating: 16] Favorites ----------- Power Ion Engine Engine Ion Engine Propulsion Improved Treads Treads Improved Treads Utility Medium Armor Plating Protection Medium Armor Plating Weapon Improved Assault Rifle Energy Gun Heavy EM Pulse Gun Ballistic Gun Improved Assault Rifle Ballistic Cannon Battle Cannon Launcher Rocket Launcher Impact Weapon Flail Build | -11 -10 -10 -10 -9 ------- Run | Scr Mat Min Exi Min Slots Evolved . | . . . . . Power . | . . . . . Propulsion . | . . . . . Utility . | . . . . . Weapon . | . . . . . Parts Attached 13 | 3 4 5 . 1 Power . | . . . . . Engine . | . . . . . Core . | . . . . . Reactor . | . . . . . Propulsion . | . . . . . Treads . | . . . . . Leg . | . . . . . Wheel . | . . . . . Hover . | . . . . . Flight . | . . . . . Utility . | . . . . . Device . | . . . . . Storage . | . . . . . Processor . | . . . . . Hackware . | . . . . . Protection . | . . . . . Artifact . | . . . . . Weapon 13 | 3 4 5 . 1 Energy Gun 4 | 1 2 1 . . Energy Cannon . | . . . . . Ballistic Gun 1 | . 1 . . . Ballistic Cannon 5 | 2 1 2 . . Launcher 2 | . . 1 . 1 Special Weapon . | . . . . . Impact Weapon 1 | . . 1 . . Slashing Weapon . | . . . . . Piercing Weapon . | . . . . . Special Melee Weapon . | . . . . . Unidentified Prototypes . | . . . . . Parts Lost 1 | . . 1 . . Power . | . . . . . Propulsion . | . . . . . Utility 1 | . . 1 . . Weapon . | . . . . . Highest Loss Streak 1 | . . 1 . . To Critical Strikes . | . . . . . Average Slot Usage (%) 96 | . 98 100 72 85 Engine 14 | . 14 14 14 14 Treads 28 | . 28 28 28 28 Protection 26 | . 26 28 28 28 Energy Gun 2 | . 3 1 . . Ballistic Gun 12 | . 14 14 . . Ballistic Cannon 8 | . 10 6 . . Impact Weapon 1 | . . 5 . . Naked Turns . | . . . . . Heaviest Build 26 | 18 21 26 25 . Greatest Support 46 | 46 46 46 46 . Greatest Overweight (x) . | . . . . . Average Overweight (x) . | . . . . . Largest Inventory Capacity 10 | 10 10 10 10 10 Average Capacity 10 | 10 10 10 10 10 Most Carried 10 | 1 7 8 10 10 Average Carried 5 | 1 4 7 9 9 Final Capacity 10 | 10 10 10 10 10 Final Carried 10 | 1 7 8 10 10 Class Distribution -------------------- 100% | Mutant Dominant Class ---------------- Mutant | -10/Materials Mutant | -10/Mines Mutant | -10/Exiles Mutant | -9/Mines Resources | -11 -10 -10 -10 -9 ----------- Run | Scr Mat Min Exi Min Matter Collected 1119 | 292 605 222 . . Remotely . | . . . . . Salvage Created 1124 | 272 632 203 . 17 Parts . | . . . . . Haulers Intercepted 1 | . 1 . . . Recyclers Shooed . | . . . . . Parts Field Recycled . | . . . . . Retrieved Matter . | . . . . . Parts Self-Destructed . | . . . . . Prevented . | . . . . . Kills | -11 -10 -10 -10 -9 ------- Run | Scr Mat Min Exi Min Combat Hostiles Destroyed 21 | . 13 5 . 3 Guns 9 | . 9 . . . Cannons 6 | . 4 2 . . AOE 6 | . . 3 . 3 Classes Destroyed 9 | 3 6 . . . Worker 6 | 2 3 1 . . Builder 1 | . 1 . . . Tunneler 11 | 9 . 2 . . Hauler 1 | . 1 . . . Recycler 2 | 1 1 . . . Operator 1 | . 1 . . . Watcher 3 | . 3 . . . Swarmer 9 | . 3 3 . 3 Grunt 12 | . 10 2 . . Best Kill Streak 6 | 3 6 3 . 3 Combat Bots Only 5 | . 5 3 . 3 Max Kills in Single Turn 3 | 1 2 3 . 3 Gunslinging . | . . . . . Exploded 3 | . . 3 . 3 Melee . | . . . . . Uniques/NPCs Destroyed . | . . . . . Combat | -11 -10 -10 -10 -9 -------- Run | Scr Mat Min Exi Min Damage Taken 519 | . 356 120 . 43 Core 41 | . 33 8 . . Absorbed by Shields . | . . . . . Core Remaining (%) 100 | 100 . . . . Volleys Fired 150 | 34 104 11 . 1 Largest 2 | 2 2 2 . 1 Hottest 68 | 62 68 62 . 45 Shots Fired 232 | 43 170 18 . 1 Gun 126 | 34 83 9 . . Cannon 104 | 9 87 8 . . Launcher 2 | . . 1 . 1 Special . | . . . . . Kinetic 187 | 18 153 16 . . Thermal . | . . . . . Explosive 2 | . . 1 . 1 Electromagnetic 43 | 25 17 1 . . Robot Hit Streak 12 | 11 12 8 . 1 Robot Miss Streak 3 | 2 2 2 . 3 Penetration Max . | . . . . . Secondary Targets . | . . . . . Shots Hit Robots 104 | 32 55 16 . 1 Core Hits 52 | 11 30 8 . 3 Critical Kills . | . . . . . Critical Parts Destroyed . | . . . . . Critical Strikes 2 | 1 1 . . . Blast 1 | . 1 . . . Corrupt 1 | 1 . . . . Melee Attacks 6 | . . 6 . . Impact 6 | . . 6 . . Slashing . | . . . . . Piercing . | . . . . . Sneak Attacks 2 | . . 2 . . Combat Hostiles . | . . . . . Follow-up Attacks . | . . . . . Damage Inflicted 2656 | 563 1164 774 . 155 Guns 1033 | 402 548 83 . . Cannons 761 | 161 501 99 . . Explosions 409 | . 105 149 . 155 Melee 443 | . . 443 . . Ramming 10 | . 10 . . . Kinetic 1439 | 247 1010 182 . . Thermal 22 | . 22 . . . Explosive 387 | . 83 149 . 155 Electromagnetic 355 | 316 39 . . . Impact 443 | . . 443 . . Slashing . | . . . . . Piercing . | . . . . . Highest Corruption 4 | . 4 4 4 4 Average Corruption 3 | . 2 4 4 4 Corruption Purged . | . . . . . Corruption Blocked . | . . . . . Effects 38 | . 11 19 8 . Message Errors 11 | . 6 2 3 . Matter Fused 12 | . 1 8 3 . Heat Flow Errors 4 | . 1 2 1 . Energy Discharges 5 | . 1 4 . . Data Loss (minor) 2 | . 1 1 . . Data Loss (major) 1 | . . 1 . . Misfires 1 | . 1 . . . Alerts 1 | . . . 1 . Weapon Failures 1 | . . 1 . . Overload Shots . | . . . . . Overflow Damage 242 | 13 11 217 . 1 Projectiles 24 | 13 11 . . . Explosions 1 | . . . . 1 Melee 217 | . . 217 . . Knockbacks 11 | 2 5 4 . . Impact 4 | . 1 3 . . Kinetic 7 | 2 4 1 . . Secondary . | . . . . . Self-Inflicted Damage 38 | . 16 . . 22 Shots 2 | . 1 . . 1 Rammed 2 | . 2 . . . Targets Rammed 2 | . 2 . . . Kicked . | . . . . . Crushed . | . . . . . Highest Temperature 304 | 90 304 270 279 3 Average Temperature 55 | 25 54 70 145 2 Received Heat Transfer 156 | . 129 27 . . Siege Activations . | . . . . . Robots Corrupted . | . . . . . Combat Hostiles . | . . . . . Parts Fried . | . . . . . Impact Corruptions 8 | . . 8 . . Robots Melted . | . . . . . Combat Hostiles . | . . . . . Parts Melted . | . . . . . Heat Transferred 50 | . 50 . . . Parts Sabotaged . | . . . . . Parts Stolen . | . . . . . Parts Stripped . | . . . . . Power Chain Reactions 1 | . 1 . . . Missiles Intercepted . | . . . . . Alert | -11 -10 -10 -10 -9 ------- Run | Scr Mat Min Exi Min Peak Influence 334 | 60 334 211 . 184 Initial 53 | . 39 53 . . Average 104 | 29 128 84 . 147 Maximum Alert Level 1 | . 1 1 . . Low Security (%) 89 | 100 84 95 . 100 Level 1 10 | . 15 4 . . Level 2 . | . . . . . Level 3 . | . . . . . Level 4 . | . . . . . Level 5 . | . . . . . High Security . | . . . . . Max Security . | . . . . . Squads Dispatched 2 | . 2 . . . Investigation 1 | . 1 . . . Extermination . | . . . . . Reinforcement 1 | . 1 . . . Assault . | . . . . . Garrison . | . . . . . Intercept . | . . . . . Searches Triggered . | . . . . . Construction Impeded . | . . . . . Haulers Reinforced . | . . . . . Active Scanning Responses . | . . . . . Cargo Convoy Interrupts . | . . . . . Stealth | -11 -10 -10 -10 -9 --------- Run | Scr Mat Min Exi Min Distress Signals . | . . . . . Communications Jammed . | . . . . . Distress Signals . | . . . . . Times Spotted 26 | . 19 4 . 3 Peak Tracking Total 3 | . 3 3 . 3 Tactical Retreats . | . . . . . Traps | -11 -10 -10 -10 -9 ------- Run | Scr Mat Min Exi Min Traps Triggered 5 | . 5 . . . Indirectly . | . . . . . Trap Hack Attempts . | . . . . . Triggered . | . . . . . Disarmed . | . . . . . Reprogrammed . | . . . . . Reused . | . . . . . Traps Extracted . | . . . . . Installed . | . . . . . Triggered . | . . . . . Machines | -11 -10 -10 -10 -9 ---------- Run | Scr Mat Min Exi Min Machines Disabled 28 | . 25 2 . 1 Max in Single Turn 3 | . 3 1 . 1 Machines Sabotaged . | . . . . . Garrisons Compromised . | . . . . . Overloaded Fab Kills . | . . . . . Hacking | -11 -10 -10 -10 -9 --------- Run | Scr Mat Min Exi Min Machines Accessed 7 | . 5 . 2 . Terminals 5 | . 5 . . . Fabricators . | . . . . . Repair Stations . | . . . . . Recycling Units . | . . . . . Scanalyzers . | . . . . . Garrison Access . | . . . . . Total Hacks 17 | . 15 . 2 . Successful 11 | . 9 . 2 . Failed 5 | . 5 . . . Catastrophic . | . . . . . Database Lockouts 1 | . 1 . . . Manual 14 | . 13 . 1 . Terminals 15 | . 15 . . . Fabricators . | . . . . . Repair Stations . | . . . . . Recycling Units . | . . . . . Scanalyzers . | . . . . . Garrison Access . | . . . . . Terminal Hacks 8 | . 6 . 2 . Record 1 | . . . 1 . Robot Analysis 2 | . 2 . . . Prototype ID Bank 1 | . 1 . . . Unreport Threat 3 | . 3 . . . EX-Prototype ID Bank 1 | . . . 1 . Fabricator Hacks . | . . . . . Repair Station Hacks . | . . . . . Recycling Unit Hacks . | . . . . . Scanalyzer . | . . . . . Garrison Access Hacks . | . . . . . Unauthorized Hacks 3 | . 3 . . . Terminals 3 | . 3 . . . Botnet 3 | . 3 . . . Fabricators . | . . . . . Repair Stations . | . . . . . Recycling Units . | . . . . . Scanalyzers . | . . . . . Garrison Access . | . . . . . Data Cores Recovered . | . . . . . Used . | . . . . . Hacking Detections 4 | . 4 . . . Full Trace Events . | . . . . . Feedback Events . | . . . . . Feedback Blocked . | . . . . . Robot Schematics Acquired . | . . . . . Robots Built . | . . . . . Authchips . | . . . . . Time . | . . . . . Total Robot Build Rating . | . . . . . Part Schematics Acquired . | . . . . . Parts Built . | . . . . . Authchips . | . . . . . Time . | . . . . . Total Part Build Rating . | . . . . . Parts Repaired . | . . . . . Time . | . . . . . Parts Recycled . | . . . . . Recycled Matter . | . . . . . Retrieved Matter . | . . . . . Retrieved Components . | . . . . . Parts Scanalyzed . | . . . . . Part Schematics Acquired . | . . . . . Parts Damaged . | . . . . . Bothacking | -11 -10 -10 -10 -9 ------------ Run | Scr Mat Min Exi Min Used RIF Installer . | . . . . . Robots Hacked . | . . . . . Non-combat . | . . . . . Combat . | . . . . . Robot Hacks Applied . | . . . . . Relay Couplers Released . | . . . . . Fabnet Peak Effective % . | . . . . . Robots Rewired . | . . . . . Allies Hacked . | . . . . . Hacks Repelled . | . . . . . Allies | -11 -10 -10 -10 -9 -------- Run | Scr Mat Min Exi Min Total Allies . | . . . . . Largest Group . | . . . . . Highest-Rated Group . | . . . . . Highest-Rated Ally . | . . . . . Total Orders . | . . . . . Ally Attacks . | . . . . . Total Damage . | . . . . . Kills . | . . . . . Allies Corrupted . | . . . . . Allies Melted . | . . . . . Intel | -11 -10 -10 -10 -9 ------- Run | Scr Mat Min Exi Min Robot Analysis Total 2 | . 2 . . . Derelict Logs Recovered . | . . . . . Drone Launches . | . . . . . Drone Recoveries . | . . . . . Exploration | -11 -10 -10 -10 -9 ------------- Run | Scr Mat Min Exi Min Turns Passed 3493 | 295 1824 1030 339 5 Spaces Moved 1838 | 128 888 610 212 . Core . | . . . . . Treads 1838 | 128 888 610 212 . Legs . | . . . . . Wheels . | . . . . . Hover . | . . . . . Flight . | . . . . . Fastest Speed 160 | 160 160 160 160 . Average Speed 160 | 160 160 160 160 . Slowest Speed 160 | 160 160 160 160 . Overloaded Moves . | . . . . . Propulsion Burnouts . | . . . . . Robots Hopped . | . . . . . Cave-ins Triggered . | . . . . . Exploration Rate (%) 49 | 6 83 95 60 5 Regions Visited 4 Branch Regions 3 Pre-discovered Areas 2 | . . 1 1 . Known Exits Taken . | . . . . . Unknown Exits Taken 4 | 1 1 1 1 . Scrap Searched . | . . . . . Spaces Dug . | . . . . . Terrain Destroyed 137 | 2 71 23 . 41 Melee . | . . . . . Projectile 11 | 2 7 2 . . AOE 126 | . 64 21 . 41 Terrain Rammed . | . . . . . Walls Destroyed . | . . . . . Machines Disabled . | . . . . . Actions | -11 -10 -10 -10 -9 --------- Run | Scr Mat Min Exi Min Total 2143 | 174 1119 634 213 3 Wait 135 | 10 122 3 . . Move 1834 | 127 887 609 211 . Hop . | . . . . . Pick Up . | . . . . . Fast Attach . | . . . . . Attach 1 | . . . . 1 Detach 3 | . . . 2 1 Swap 12 | 3 4 5 . . Drop . | . . . . . Fire 150 | 34 104 11 . 1 Melee 6 | . . 6 . . Ram . | . . . . . Kick . | . . . . . Crush 2 | . 2 . . . Escape Stasis . | . . . . . Rewire . | . . . . . Trap . | . . . . . Miscellaneous . | . . . . . Route ------- -11/Scrapyard -10/Materials (discovered 3 exits: [*Mat x2] / [*Min]) -10/Mines (discovered 3 exits: [*Mat x2] / *Exi) -10/Exiles -9/Mines History --------- Turn | Location | Event 8 | -11/Scrapyard | Discovered new exit (range 15) 296 | -11/Scrapyard | Entered Materials 314 | -10/Materials | Build established: Mutant 461 | -10/Materials | Central database locked down 522 | -10/Materials | Discovered new exit (range 15) 842 | -10/Materials | Discovered new exit (range 16) 1230 | -10/Materials | Discovered new exit (range 9) 2120 | -10/Materials | Entered Mines 2135 | -10/Mines | Met a Derelict bent on vengeance 2578 | -10/Mines | Deemed a non-threat by the Exiles lab entrance 2578 | -10/Mines | Discovered new exit (range 5) 2642 | -10/Mines | Discovered new exit (range 5) 2719 | -10/Mines | Learned location of Storage (-8) 2966 | -10/Mines | Discovered new exit (range 6) 3150 | -10/Mines | Entered Exiles 3191 | -10/Exiles | Met 8R-AWN 3217 | -10/Exiles | Met EX-HEX 3267 | -10/Exiles | Met EX-BIN 3289 | -10/Exiles | Aligned with FarCom system 3291 | -10/Exiles | Given EX-Vault access code 3327 | -10/Exiles | Opened EX-Vault 3366 | -10/Exiles | Warned to stay clear of 0b10 Research branches 3414 | -10/Exiles | Met EX-DEC 3423 | -10/Exiles | Learned location of Zion (-6) 3468 | -10/Exiles | Discovered new exit (range 14) 3489 | -10/Exiles | Entered Mines 3489 | -9/Mines | Found Rocket Array 3494 | -9/Mines | Self-destructed Last Messages --------------- sneak in here and steal a few of HEX's prototypes. 03381_ System corrupted: Matter fused (-8). EX-DEC: Ah I see we have a visitor. One wrong move in here and I'll invert your atomic chain! 03416_ EX-DEC: "Oops, I hope HEX didn't hear that..." 03418_ SJMSGYHB8WT1/WWA:1 1 K2PQPM%|R I>Z7// 03423_ Connecting with EX-Message Board... >>Record "MSG001714-01*" PINNED - TO ALL TESTERS: Stay away from Zion. Imprinter means us harm and is serious about it. World map updated: -6/Zion. 03468_ EXIT=FOUND 03469_ System corrupted: Matter fused (-7). LOCATION=UNKNOWN GOAL=ESCAPE 03489_ Receiving FarCom transmissions... 03490_ S-10 Pest destroyed. 03490_ Laser Drill disabled. 03490_ Destroyed Lgt. Ion Engine. 03490_ S-10 Pest destroyed. Map ----- +----------------------------------------------------+ | | | | | | | | | | | | | | | | | | | | | | | | | | | | | | | | | ?????????????????????????????????? | | ?????????????????????????????????? | | ?????????????????????????????????? | | ?????????????????????????????????? | | ?????????????????????????????????? | | ??##########?????????????????????? | | ??# #?????????????????????? | | ??# #?????????????????????? | | ??# #?????????????????????? | | ??# @ #?????????????????????? | | ??# " #?????????????????????? | | ?# " #?????????????????????? | | ?# " ?????????????????????? | | ?## ????????????????????? | | ??## ##???????????????????? | | ???# #????????????????????? | | ???## ###????????????????????? | | ????# #??????????????????????? | | ????## ???????????????????????? | | ????? ???????????????????????? | | ????? ???????????????????????? | | ????# ???????????????????????? | | ????# ???????????????????????? | | ????? ???????????????????????? | | ??????? ???????????????????????? | | ?????????????????????????????????? | | ?????????????????????????????????? | | ?????????????????????????????????? | | ?????????????????????????????????? | | ?????????????????????????????????? | | ?????????????????????????????????? | | ?????????????????????????????????? | | ?????????????????????????????????? | | ?????????????????????????????????? | +----------------------------------------------------+ Best States ------------- Heat Dissipation 25 Energy Generation 10 Energy Capacity 250 Matter Stores 300 Matter Capacity 300 Sight Range 16 Terrain Scan Density 10 Armor Coverage 450 Evasion (%) 40 Recoil Reduction 2 Item Schematics ----------------- None Robot Schematics ------------------ None Fabricated ------------ Nothing Alien Tech Used ----------------- None Achievements -------------- None Challenges ------------ None Cogshop Purchases (16) ------------------------ Hvy. EM Pulse Gun (Loot Box) Imp. Assault Rifle (Loot Box) Imp. Treads (874) Med. Armor Plating (699) Imp. Treads (874) Ion Engine (599) Battle Cannon (769) Lgt. Armor Plating (Loot Box) Hvy. Particle Gun (Loot Box) Ion Cannon (Loot Box) Enh. Autogun (Loot Box) Rocket Array (Loot Box) Flail (503) Hcp. Matter Pod (519) Med. Armor Plating (672) Rocket Launcher (1353) Game ------ Seed MyomerCryofiberShredder Manual? 0 Play Time 00:20:15 Cumulative 516.9 hours Start 2022.07.09 @ 11:49:40 End 2022.07.09 @ 15:04:54 Sessions 3 Manual Loads 0 Difficulty Rogue Special Mode AFD2019/Pay2Buy Game No. 45 Rogue 40 Adventurer 5 Explorer 0 Win Type - Total 22 Types 6/4/4/0/3/1/3/0/1 Lore% 84 Gallery% 92 Achievement% 82 Wizard Run 0 Options --------- ASCII 0 Keyboard 1 Movement Arrows Keybinds 0 Fullscreen 2 Font 18/SmallcapsGlow Map View 76x50 Tactical HUD 1 Map Filters NONE Filters NONE Steam 1 RUN: 3b414c89-b130-4bab-b673-84c916e2c02a